fUSD/lending_fUSD_20240523
["ID","MTS","AMOUNT","RATE_DAILY","PERIOD"]
[327809467,1716498646011,-500.0,0.00022191,2]
[327809469,1716498646021,-761.22,0.00022191,2]
[327809471,1716498646031,-500.0,0.00022191,2]
[327809473,1716498646040,-500.0,0.00022191,2]
[327809475,1716498646050,-500.0,0.00022191,2]
[327809477,1716498646059,-500.0,0.00022191,2]
[327809479,1716498646069,-500.0,0.00022191,2]
[327809481,1716498646079,-500.0,0.00022191,2]
[327809483,1716498646088,-150.0,0.00022208,2]
[327809485,1716498646098,-150.0,0.00022261,2]
[327809487,1716498646107,-171.4,0.00022291,2]
[327809490,1716498646117,-425381.0,0.000223,2]
[327809492,1716498646127,-154.20664879,0.00022359,2]
[327809494,1716498646136,-150.0,0.00022378,2]
[327809495,1716498646147,-150.67,0.0002239,2]
[327809498,1716498646156,-150.67,0.0002239,2]
[327809500,1716498646170,-150.67,0.0002239,2]
[327809501,1716498646179,-150.67,0.0002239,2]
[327809503,1716498646189,-150.67,0.0002239,2]
[327809505,1716498646198,-150.67,0.0002239,2]
[327809507,1716498646208,-1088.12,0.00022391,2]
[327809510,1716498646217,-151.0,0.00022411,3]
[327809511,1716498646227,-150.0,0.00022429,2]
[327809514,1716498646237,-153.97169795,0.0002243,2]
[327809516,1716498646248,-150.0,0.00022462,2]
[327809518,1716498646258,-500.0,0.00022465,2]
[327809520,1716498646268,-500.0,0.00022465,2]
[327809522,1716498646277,-500.0,0.00022465,2]
[327809524,1716498646287,-500.0,0.00022465,2]
[327809526,1716498646296,-500.0,0.00022465,2]
[327809528,1716498646306,-500.0,0.00022465,2]
[327809530,1716498646315,-500.0,0.00022465,2]
[327809532,1716498646327,-500.0,0.00022465,2]
[327809534,1716498646337,-500.0,0.00022465,2]
[327809536,1716498646346,-500.0,0.00022465,2]
[327809538,1716498646355,-500.0,0.00022465,2]
[327809540,1716498646368,-500.0,0.00022465,2]
[327809544,1716498646377,-1595.55,0.00022465,2]
[327809548,1716498646386,-500.0,0.00022465,2]
[327809550,1716498646396,-500.0,0.00022465,2]
[327809553,1716498646405,-500.0,0.00022465,2]
[327809556,1716498646414,-500.0,0.00022465,2]
[327809559,1716498646426,-500.0,0.00022465,2]
[327809562,1716498646435,-500.0,0.00022465,2]
[327809564,1716498646446,-809.83,0.00022465,2]
[327809567,1716498646455,-1781.63,0.00022465,2]
[327809570,1716498646464,-500.0,0.00022465,2]
[327809573,1716498646474,-500.0,0.00022465,2]
[327809576,1716498646483,-500.0,0.00022465,2]
[327809579,1716498646492,-500.0,0.00022465,2]
[327809582,1716498646501,-500.0,0.00022465,2]
[327809585,1716498646511,-500.0,0.00022465,2]
[327809588,1716498646520,-500.0,0.00022465,2]
[327809590,1716498646529,-500.0,0.00022465,2]
[327809594,1716498646539,-500.0,0.00022465,2]
[327809597,1716498646549,-500.0,0.00022465,2]
[327809600,1716498646559,-500.0,0.00022465,2]
[327809603,1716498646568,-500.0,0.00022465,2]
[327809606,1716498646578,-500.0,0.00022465,2]
[327809609,1716498646587,-500.0,0.00022465,2]
[327809611,1716498646597,-229.69111283,0.00022465,2]
[327809615,1716498646607,-500.0,0.00022465,2]
[327809617,1716498646616,-500.0,0.00022465,2]
[327809620,1716498646626,-500.0,0.00022465,2]
[327809624,1716498646635,-500.0,0.00022465,2]
[327809627,1716498646644,-500.0,0.00022465,2]
[327809630,1716498646655,-500.0,0.00022465,2]
[327809632,1716498646664,-449.48035854,0.00022465,2]
[327809636,1716498646677,-500.0,0.00022465,2]
[327809638,1716498646687,-761.22,0.00022465,2]
[327809640,1716498646696,-500.0,0.00022465,2]
[327809641,1716498646706,-500.0,0.00022465,2]
[327809644,1716498646715,-500.0,0.00022465,2]
[327809646,1716498646724,-500.0,0.00022465,2]
[327809648,1716498646734,-500.0,0.00022465,2]
[327809650,1716498646744,-500.0,0.00022465,2]
[327809652,1716498646753,-321.38073273,0.00022469,2]
[327809653,1716498646762,-155.0,0.000225,2]
[327809655,1716498646772,-163.2024944,0.00022519,2]
[327809657,1716498646781,-1566.41558323,0.00022554,2]
[327809659,1716498646791,-150.0,0.00022568,2]
[327809661,1716498646800,-2008.41,0.00022573,2]
[327809664,1716498646810,-150.0,0.00022591,2]
[327809666,1716498646819,-151.0,0.0002267,3]
[327809668,1716498646829,-150.0,0.00022677,2]
[327809670,1716498646839,-150.0,0.00022721,2]
[327809671,1716498646848,-150.67,0.00022729,2]
[327809674,1716498646859,-500.0,0.00022739,2]
[327809676,1716498646868,-455.31,0.00022739,2]
[327809678,1716498646878,-500.0,0.00022739,2]
[327809680,1716498646887,-500.0,0.00022739,2]
[327809682,1716498646896,-500.0,0.00022739,2]
[327809684,1716498646906,-500.0,0.00022739,2]
[327809686,1716498646918,-372.28200123,0.00022739,2]
[327809688,1716498646927,-500.0,0.00022739,2]
[327809689,1716498646936,-500.0,0.00022739,2]
[327809691,1716498646946,-500.0,0.00022739,2]
[327809693,1716498646956,-500.0,0.00022739,2]
[327809696,1716498646966,-500.0,0.00022739,2]
[327809697,1716498646976,-1595.55,0.00022739,2]
[327809699,1716498646986,-500.0,0.00022739,2]
[327809702,1716498646995,-429.09413569,0.00022739,2]
[327809704,1716498647005,-500.0,0.00022739,2]
[327809705,1716498647014,-500.0,0.00022739,2]
[327809707,1716498647024,-500.0,0.00022739,2]
[327809709,1716498647033,-500.0,0.00022739,2]
[327809711,1716498647043,-809.83,0.00022739,2]
[327809713,1716498647053,-1781.63,0.00022739,2]
[327809715,1716498647064,-500.0,0.00022739,2]
[327809717,1716498647075,-500.0,0.00022739,2]
[327809720,1716498647085,-500.0,0.00022739,2]
[327809722,1716498647095,-500.0,0.00022739,2]
[327809724,1716498647105,-500.0,0.00022739,2]
[327809726,1716498647115,-500.0,0.00022739,2]
[327809728,1716498647124,-500.0,0.00022739,2]
[327809729,1716498647134,-500.0,0.00022739,2]
[327809731,1716498647144,-500.0,0.00022739,2]
[327809733,1716498647154,-500.0,0.00022739,2]
[327809735,1716498647165,-500.0,0.00022739,2]
[327809738,1716498647184,-500.0,0.00022739,2]
[327809740,1716498647195,-500.0,0.00022739,2]
[327809742,1716498647204,-500.0,0.00022739,2]
[327809744,1716498647215,-500.0,0.00022739,2]
[327809746,1716498647226,-500.0,0.00022739,2]
[327809748,1716498647237,-500.0,0.00022739,2]
[327809749,1716498647247,-500.0,0.00022739,2]
[327809751,1716498647257,-500.0,0.00022739,2]
[327809754,1716498647269,-500.0,0.00022739,2]
[327809755,1716498647281,-761.22,0.00022739,2]
[327809757,1716498647292,-500.0,0.00022739,2]
[327809759,1716498647303,-500.0,0.00022739,2]
[327809761,1716498647314,-500.0,0.00022739,2]
[327809764,1716498647331,-500.0,0.00022739,2]
[327809766,1716498647343,-3000.0,0.0002274,2]
[327809768,1716498647354,-3000.0,0.0002276,2]
[327809770,1716498647367,-3000.0,0.0002278,2]
[327809772,1716498647379,-235.78,0.00022803,2]
[327809774,1716498647390,-166.77,0.00022803,2]
[327809776,1716498647402,-352.06,0.00022803,2]
[327809778,1716498647413,-150.0,0.00022803,2]
[327809780,1716498647438,-150.0,0.00022803,2]
[327809782,1716498647449,-310.82,0.00022803,2]
[327809784,1716498647460,-152.71,0.00022803,2]
[327809786,1716498647473,-150.0,0.0002281,2]
[327809788,1716498647484,-3000.0,0.0002282,2]
[327809790,1716498647495,-3000.0,0.0002286,2]
[327809792,1716498647506,-150.0,0.00022872,2]
[327809794,1716498647517,-150.67,0.00022879,2]
[327809796,1716498647527,-163.2024944,0.00022883,2]
[327809798,1716498647537,-150.67,0.00022888,2]
[327809800,1716498647547,-150.67,0.00022888,2]
[327809802,1716498647556,-30540.83561088,0.00022889,2]
[327809804,1716498647566,-30540.83561085,0.00022889,2]
[327809806,1716498647576,-10000.0,0.00022896,2]
[327809808,1716498647586,-410.32962451,0.00022898,2]
[327809810,1716498647595,-64596.50184419,0.00022898,2]
[327809812,1716498647605,-64596.5018441,0.00022898,2]
[327809814,1716498647615,-155.0,0.00022899,2]
[327809816,1716498647624,-555.34830408,0.00022899,2]
[327809818,1716498647634,-2222.04647422,0.00022899,7]
[327809820,1716498647644,-3089.78671898,0.00022899,2]
[327809822,1716498647654,-2776.97105941,0.00022899,2]
[327809824,1716498647663,-3000.0,0.000229,2]
[327809826,1716498647674,-11718.0,0.000229,3]
[327809828,1716498647685,-150.0,0.00022904,2]
[327809830,1716498647695,-150.0,0.00022913,2]
[327809832,1716498647704,-151.0,0.00022929,3]
[327809834,1716498647714,-150.0,0.00022935,2]
[327809836,1716498647723,-154.2066488,0.00022969,2]
[327809838,1716498647734,-713.3372251,0.00022979,2]
[327809840,1716498647745,-800.0,0.00023,2]
[327809842,1716498647755,-2988.755669,0.00023,2]
[327809844,1716498647765,-455.87442567,0.00023013,2]
[327809846,1716498647775,-401.88991551,0.00023013,2]
[327809848,1716498647785,-500.0,0.00023013,2]
[327809850,1716498647794,-500.0,0.00023013,2]
[327809852,1716498647804,-500.0,0.00023013,2]
[327809854,1716498647813,-500.0,0.00023013,2]
[327809856,1716498647822,-500.0,0.00023013,2]
[327809858,1716498647831,-500.0,0.00023013,2]
[327809859,1716498647841,-500.0,0.00023013,2]
[327809861,1716498647850,-500.0,0.00023013,2]
[327809863,1716498647859,-1595.55,0.00023013,2]
[327809865,1716498647869,-500.0,0.00023013,2]
[327809867,1716498647878,-500.0,0.00023013,2]
[327809869,1716498647888,-500.0,0.00023013,2]
[327809871,1716498647898,-500.0,0.00023013,2]
[327809873,1716498647907,-500.0,0.00023013,2]
[327809875,1716498647924,-809.83,0.00023013,2]
[327809877,1716498647940,-1781.63,0.00023013,2]
[327809879,1716498647950,-500.0,0.00023013,2]
[327809880,1716498647960,-500.0,0.00023013,2]
[327809881,1716498647970,-500.0,0.00023013,2]
[327809882,1716498647980,-500.0,0.00023013,2]
[327809883,1716498647989,-500.0,0.00023013,2]
[327809884,1716498647999,-500.0,0.00023013,2]
[327809885,1716498648009,-500.0,0.00023013,2]
[327809886,1716498648019,-500.0,0.00023013,2]
[327809887,1716498648029,-500.0,0.00023013,2]
[327809888,1716498648039,-500.0,0.00023013,2]
[327809889,1716498648048,-500.0,0.00023013,2]
[327809890,1716498648057,-500.0,0.00023013,2]
[327809891,1716498648068,-500.0,0.00023013,2]
[327809892,1716498648078,-500.0,0.00023013,2]
[327809893,1716498648088,-500.0,0.00023013,2]
[327809894,1716498648099,-500.0,0.00023013,2]
[327809895,1716498648109,-500.0,0.00023013,2]
[327809896,1716498648118,-500.0,0.00023013,2]
[327809897,1716498648128,-500.0,0.00023013,2]
[327809898,1716498648137,-761.22,0.00023013,2]
[327809899,1716498648147,-500.0,0.00023013,2]
[327809900,1716498648156,-500.0,0.00023013,2]
[327809902,1716498648166,-616.96806806,0.00023013,2]
[327809904,1716498648176,-163.2024944,0.00023014,2]
[327809906,1716498648185,-150.0,0.00023035,2]
[327809908,1716498648195,-150.0,0.00023064,2]
[327809910,1716498648204,-150.0,0.00023136,2]
[327809912,1716498648215,-153.97169795,0.00023164,2]
[327809914,1716498648225,-163.2024944,0.00023172,2]
[327809916,1716498648235,-153.55433201,0.00023176,2]
[327809918,1716498648245,-150.0,0.00023188,2]
[327809920,1716498648255,-150.0,0.00023193,2]
[327809922,1716498648265,-150.0,0.00023194,2]
[327809924,1716498648275,-150.67,0.00023277,2]
[327809926,1716498648284,-416.60382576,0.00023287,2]
[327809928,1716498648294,-500.0,0.00023287,2]
[327809930,1716498648303,-500.0,0.00023287,2]
[327809932,1716498648313,-500.0,0.00023287,2]
[327809934,1716498648324,-500.0,0.00023287,2]
[327809936,1716498648333,-500.0,0.00023287,2]
[327809938,1716498648342,-500.0,0.00023287,2]
[327809940,1716498648353,-500.0,0.00023287,2]
[327809942,1716498648362,-1595.55,0.00023287,2]
[327809944,1716498648376,-500.0,0.00023287,2]
[327809946,1716498648385,-500.0,0.00023287,2]
[327809948,1716498648395,-500.0,0.00023287,2]
[327809950,1716498648403,-500.0,0.00023287,2]
[327809952,1716498648414,-500.0,0.00023287,2]
[327809955,1716498648436,-809.83,0.00023287,2]
[327809956,1716498648445,-1781.63,0.00023287,2]
[327809959,1716498648454,-500.0,0.00023287,2]
[327809960,1716498648464,-500.0,0.00023287,2]
[327809962,1716498648473,-500.0,0.00023287,2]
[327809964,1716498648483,-500.0,0.00023287,2]
[327809966,1716498648492,-500.0,0.00023287,2]
[327809968,1716498648502,-500.0,0.00023287,2]
[327809970,1716498648511,-500.0,0.00023287,2]
[327809972,1716498648520,-580.33719258,0.00023287,2]
[327809974,1716498648530,-592.63115162,0.00023287,2]
[327809976,1716498648540,-500.0,0.00023287,2]
[327809978,1716498648549,-500.0,0.00023287,2]
[327809980,1716498648559,-500.0,0.00023287,2]
[327809982,1716498648569,-500.0,0.00023287,2]
[327809984,1716498648580,-500.0,0.00023287,2]
[327809986,1716498648590,-500.0,0.00023287,2]
[327809989,1716498648600,-500.0,0.00023287,2]
[327809990,1716498648610,-500.0,0.00023287,2]
[327809992,1716498648619,-500.0,0.00023287,2]
[327809994,1716498648629,-761.22,0.00023287,2]
[327809996,1716498648638,-500.0,0.00023287,2]
[327809998,1716498648648,-500.0,0.00023287,2]
[327810000,1716498648658,-500.0,0.00023287,2]
[327810002,1716498648672,-159.70876585,0.00023295,2]
[327810004,1716498648681,-150.0,0.00023296,2]
[327810006,1716498648691,-2076.70537357,0.00023299,2]
[327810008,1716498648700,-150.0,0.00023328,2]
[327810010,1716498648710,-150.0,0.00023337,2]
[327810012,1716498648719,-150.0,0.00023365,2]
[327810014,1716498648729,-424.0,0.00023381,2]
[327810016,1716498648738,-542.43859095,0.000234,2]
[327810018,1716498648748,-11718.0,0.000234,5]
[327810019,1716498648757,-150.0,0.0002341,2]
[327810021,1716498648766,-150.0,0.00023411,2]
[327810023,1716498648776,-150.67,0.00023419,2]
[327810025,1716498648786,-30540.83561085,0.00023429,2]
[327810027,1716498648795,-61865.71874095,0.00023429,2]
[327810035,1716498649161,-2730.78310315,0.00023429,2]
[327810037,1716498649179,-150.0,0.00023443,2]
[327810039,1716498649190,-160.57597217,0.00023444,2]
[327810041,1716498649201,-163.2024944,0.00023448,2]
[327810043,1716498649213,-150.0,0.0002348,2]
[327810045,1716498649224,-513.4347032,0.000235,2]
[327810047,1716498649237,-982.76307475,0.000235,2]
[327810049,1716498649252,-3.80222205,0.000235,2]
[327810051,1716498649264,-150.0,0.00023512,2]
[327810053,1716498649275,-525.86374757,0.00023561,2]
[327810055,1716498649286,-500.0,0.00023561,2]
[327810057,1716498649299,-500.0,0.00023561,2]
[327810059,1716498649311,-500.0,0.00023561,2]
[327810061,1716498649325,-500.0,0.00023561,2]
[327810063,1716498649340,-500.0,0.00023561,2]
[327810065,1716498649351,-500.0,0.00023561,2]
[327810068,1716498649362,-500.0,0.00023561,2]
[327810070,1716498649377,-500.0,0.00023561,2]
[327810072,1716498649387,-500.0,0.00023561,2]
[327810074,1716498649400,-500.0,0.00023561,2]
[327810076,1716498649412,-500.0,0.00023561,2]
[327810078,1716498649436,-809.83,0.00023561,2]
[327810080,1716498649447,-1781.63,0.00023561,2]
[327810082,1716498649458,-500.0,0.00023561,2]
[327810084,1716498649469,-500.0,0.00023561,2]
[327810086,1716498649479,-500.0,0.00023561,2]
[327810088,1716498649489,-581.86158804,0.00023561,2]
[327810090,1716498649500,-500.0,0.00023561,2]
[327810092,1716498649511,-500.0,0.00023561,2]
[327810094,1716498649521,-500.0,0.00023561,2]
[327810096,1716498649532,-500.0,0.00023561,2]
[327810098,1716498649542,-500.0,0.00023561,2]
[327810100,1716498649553,-288.19309397,0.00023561,2]
[327810102,1716498649564,-500.0,0.00023561,2]
[327810104,1716498649574,-500.0,0.00023561,2]
[327810106,1716498649584,-761.22,0.00023561,2]
[327810108,1716498649595,-500.0,0.00023561,2]
[327810110,1716498649605,-150.0,0.00023566,2]
[327810112,1716498649615,-150.0,0.00023607,2]
[327810114,1716498649625,-150.0,0.00023619,2]
[327810116,1716498649635,-163.2024944,0.00023654,2]
[327810118,1716498649645,-163.2024944,0.00023678,2]
[327810120,1716498649655,-301.77059,0.00023688,2]
[327810123,1716498649673,-137.22941,0.00023688,2]
[327810125,1716498649683,-613.0,0.00023688,2]
[327810127,1716498649692,-120.3005388,0.00023688,2]
[327810129,1716498649706,-1104.6994612,0.00023688,2]
[327810131,1716498649715,-1644.0,0.00023688,2]
[327810133,1716498649725,-1644.0,0.00023688,2]
[327810135,1716498649735,-1263.0,0.00023688,2]
[327810137,1716498649744,-445.0,0.00023688,2]
[327810139,1716498649754,-295.0,0.00023688,2]
[327810141,1716498649764,-150.0,0.00023688,2]
[327810143,1716498649774,-164.0,0.00023688,2]
[327810145,1716498649783,-809.0,0.00023688,2]
[327810147,1716498649793,-1648.0,0.00023688,2]
[327810149,1716498649802,-1137.0,0.00023688,2]
[327810151,1716498649812,-215.0,0.00023688,2]
[327810153,1716498649821,-150.0,0.00023688,2]
[327810155,1716498649830,-3161.0,0.00023688,2]
[327810157,1716498649840,-152.16150963,0.00023694,2]
[327810159,1716498649849,-150.0,0.000237,2]
[327810161,1716498649859,-150.67,0.00023705,2]
[327810163,1716498649868,-150.0,0.00023705,2]
[327810165,1716498649877,-5760.0,0.00023715,2]
[327810167,1716498649887,-1078.71601783,0.00023715,2]
[327810169,1716498649899,-4056.28398217,0.00023715,2]
[327810171,1716498649908,-289.0,0.00023715,2]
[327810173,1716498649921,-1466.0,0.00023715,2]
[327810175,1716498649930,-964.22083433,0.00023715,2]
[327810177,1716498649941,-36939.77916567,0.00023715,2]
[327810179,1716498649951,-1061.0,0.00023715,2]
[327810181,1716498649960,-150.0,0.00023737,2]
[327810183,1716498649969,-152.44026373,0.00023747,2]
[327810185,1716498649978,-155.23279894,0.00023752,2]
[327810187,1716498649987,-150.0,0.00023756,2]
[327810189,1716498649997,-150.0,0.00023764,2]
[327810191,1716498650006,-300.0,0.00023766,2]
[327810193,1716498650016,-150.0,0.00023768,2]
[327810195,1716498650026,-150.0,0.00023777,2]
[327810197,1716498650035,-155.19686421,0.00023777,2]
[327810199,1716498650045,-605.93893733,0.00023805,2]
[327810201,1716498650054,-150.0,0.00023822,2]
[327810203,1716498650063,-150.0,0.00023825,2]
[327810205,1716498650073,-150.0,0.00023831,2]
[327810208,1716498650083,-159.70876585,0.00023831,2]
[327810209,1716498650092,-500.0,0.00023835,2]
[327810211,1716498650101,-500.0,0.00023835,2]
[327810214,1716498650111,-500.0,0.00023835,2]
[327810216,1716498650120,-500.0,0.00023835,2]
[327810217,1716498650129,-196.06674448,0.00023835,2]
[327810219,1716498650138,-500.0,0.00023835,2]
[327810221,1716498650148,-1595.55,0.00023835,2]
[327810223,1716498650157,-500.0,0.00023835,2]
[327810225,1716498650168,-500.0,0.00023835,2]
[327810227,1716498650178,-500.0,0.00023835,2]
[327810229,1716498650187,-516.28,0.00023835,2]
[327810231,1716498650196,-317.57786685,0.00023835,2]
[327810233,1716498650205,-809.83,0.00023835,2]
[327810235,1716498650214,-1781.63,0.00023835,2]
[327810238,1716498650224,-500.0,0.00023835,2]
[327810240,1716498650233,-500.0,0.00023835,2]
[327810242,1716498650242,-500.0,0.00023835,2]
[327810244,1716498650252,-500.0,0.00023835,2]
[327810245,1716498650261,-500.0,0.00023835,2]
[327810247,1716498650270,-500.0,0.00023835,2]
[327810250,1716498650280,-500.0,0.00023835,2]
[327810251,1716498650289,-553.6,0.00023835,2]
[327810254,1716498650299,-500.0,0.00023835,2]
[327810256,1716498650308,-761.22,0.00023835,2]
[327810257,1716498650318,-500.0,0.00023835,2]
[327810259,1716498650330,-300.0,0.00023839,2]
[327810261,1716498650340,-150.0,0.00023853,2]
[327810264,1716498650350,-1500.0,0.00023861,2]
[327810265,1716498650359,-150.0,0.00023889,2]
[327810267,1716498650373,-150.0,0.00023906,2]
[327810269,1716498650383,-150.0,0.00023907,2]
[327810272,1716498650393,-150.0,0.00023928,2]
[327810273,1716498650402,-150.0,0.00023938,2]
[327810275,1716498650411,-150.0,0.00023942,2]
[327810278,1716498650425,-150.0,0.00023946,2]
[327810280,1716498650434,-150.0,0.0002396,2]
[327810282,1716498650443,-150.0,0.00023962,2]
[327810284,1716498650455,-150.0,0.00023994,2]
[327810285,1716498650464,-472.45726553,0.00024,2]
[327810288,1716498650474,-831.36276449,0.00024,2]
[327810290,1716498650483,-3705.32865351,0.00024,3]
[327810292,1716498650492,-2000.0,0.00024,2]
[327810293,1716498650502,-1500.0,0.00024,2]
[327810296,1716498650512,-2000.0,0.0002401,2]
[327810298,1716498650521,-1000.0,0.00024016,2]
[327810300,1716498650530,-2000.0,0.0002402,2]
[327810301,1716498650539,-2000.0,0.0002403,2]
[327810304,1716498650549,-3434.089824,0.0002404,2]
[327810306,1716498650558,-150.0,0.00024057,2]
[327810308,1716498650568,-555.0,0.0002407,2]
[327810310,1716498650577,-150.0,0.00024082,2]
[327810312,1716498650587,-159.70876585,0.00024107,2]
[327810314,1716498650597,-500.0,0.00024109,2]
[327810316,1716498650606,-500.0,0.00024109,2]
[327810317,1716498650616,-645.6398694,0.00024109,2]
[327810320,1716498650626,-500.0,0.00024109,2]
[327810322,1716498650635,-500.0,0.00024109,2]
[327810323,1716498650644,-1595.55,0.00024109,2]
[327810325,1716498650652,-511.32803589,0.00024109,2]
[327810327,1716498650662,-500.0,0.00024109,2]
[327810329,1716498650675,-500.0,0.00024109,2]
[327810331,1716498650684,-809.83,0.00024109,2]
[327810333,1716498650694,-1781.63,0.00024109,2]
[327810335,1716498650706,-500.0,0.00024109,2]
[327810338,1716498650715,-150.09303129,0.00024109,2]
[327810340,1716498650724,-516.74,0.00024109,2]
[327810341,1716498650734,-500.0,0.00024109,2]
[327810343,1716498650743,-500.0,0.00024109,2]
[327810345,1716498650752,-500.0,0.00024109,2]
[327810347,1716498650761,-500.0,0.00024109,2]
[327810349,1716498650771,-500.0,0.00024109,2]
[327810351,1716498650780,-761.22,0.00024109,2]
[327810353,1716498650789,-500.0,0.00024109,2]
[327810355,1716498650798,-150.0,0.0002411,2]
[327810357,1716498650807,-1018.295,0.00024116,2]
[327810359,1716498650816,-492.055,0.00024116,2]
[327810361,1716498650825,-150.0,0.0002412,2]
[327810363,1716498650834,-150.0,0.00024132,2]
[327810365,1716498650844,-1425.14515752,0.00024142,28]
[327810367,1716498650853,-300.0,0.00024158,2]
[327810369,1716498650862,-155.23279894,0.00024174,2]
[327810371,1716498650872,-12489.18500471,0.00024202,2]
[327810373,1716498650880,-180.0,0.0002423,2]
[327810375,1716498650890,-321.38073273,0.0002423,2]
[327810377,1716498650899,-150.0,0.00024293,2]
[327810379,1716498650908,-300.0,0.00024314,2]
[327810381,1716498650921,-7500.0,0.00024316,2]
[327810383,1716498650931,-152.16150963,0.0002432,2]
[327810385,1716498650940,-1500.0,0.0002433,2]
[327810387,1716498650950,-991.52827719,0.00024337,2]
[327810388,1716498650959,-150.0,0.00024344,2]
[327810389,1716498650969,-150.0,0.00024357,2]
[327810390,1716498650978,-500.0,0.00024383,2]
[327810391,1716498650990,-500.0,0.00024383,2]
[327810392,1716498650999,-500.0,0.00024383,2]
[327810393,1716498651009,-344.19732935,0.00024383,2]
[327810394,1716498651018,-1595.55,0.00024383,2]
[327810395,1716498651027,-318.7048576,0.00024383,2]
[327810396,1716498651036,-500.0,0.00024383,2]
[327810397,1716498651045,-809.83,0.00024383,2]
[327810398,1716498651055,-1781.63,0.00024383,2]
[327810399,1716498651064,-500.0,0.00024383,2]
[327810401,1716498651074,-500.0,0.00024383,2]
[327810403,1716498651084,-174.40805698,0.00024383,2]
[327810405,1716498651094,-500.0,0.00024383,2]
[327810407,1716498651103,-500.0,0.00024383,2]
[327810409,1716498651112,-500.0,0.00024383,2]
[327810411,1716498651122,-761.22,0.00024383,2]
[327810413,1716498651132,-500.0,0.00024383,2]
[327810415,1716498651141,-150.0,0.00024421,2]
[327810417,1716498651151,-156.27073444,0.00024426,2]
[327810419,1716498651160,-188.27751455,0.00024428,2]
[327810421,1716498651175,-346.08357273,0.00024428,2]
[327810423,1716498651184,-23330.89076856,0.00024428,2]
[327810425,1716498651194,-257.06478946,0.00024428,2]
[327810427,1716498651203,-599.24006216,0.00024428,2]
[327810429,1716498651213,-150.0,0.00024489,2]
[327810431,1716498651223,-2000.0,0.000245,2]
[327810433,1716498651232,-2000.0,0.000245,2]
[327810435,1716498651242,-1500.0,0.000245,2]
[327810437,1716498651252,-155.19686421,0.00024504,2]
[327810439,1716498651262,-150.0,0.00024514,2]
[327810441,1716498651271,-150.0,0.00024519,2]
[327810443,1716498651281,-150.0,0.00024522,2]
[327810445,1716498651291,-150.0,0.00024523,2]
[327810447,1716498651300,-152.16150963,0.00024532,2]
[327810449,1716498651310,-150.0,0.00024557,2]
[327810451,1716498651321,-150.0,0.00024566,2]
[327810453,1716498651332,-376.45495096,0.00024581,2]
[327810455,1716498651341,-2076.70537357,0.00024595,2]
[327810457,1716498651351,-576.0,0.000246,2]
[327810459,1716498651360,-150.0,0.00024617,2]
[327810461,1716498651374,-150.0,0.00024643,2]
[327810463,1716498651383,-1088.12,0.00024655,2]
[327810465,1716498651392,-500.0,0.00024657,2]
[327810467,1716498651402,-500.0,0.00024657,2]
[327810469,1716498651412,-611.87178535,0.00024657,2]
[327810471,1716498651426,-1595.55,0.00024657,2]